lending/lending_fUSD_20240410
["ID","MTS","AMOUNT","RATE_DAILY","PERIOD"]
[322074406,1712743844042,-300.0,0.00032235,7]
[322074407,1712743844053,-750.0,0.00032243,2]
[322074408,1712743844062,-334.0,0.00032243,2]
[322074409,1712743844071,-474.0,0.00032243,2]
[322074410,1712743844080,-157.18906213,0.00032284,7]
[322074411,1712743844090,-150.0,0.000324,3]
[322074412,1712743844099,-153.88972214,0.00032432,7]
[322074413,1712743844108,-300.0,0.00032485,7]
[322074414,1712743844117,-1002.84,0.0003251,2]
[322074415,1712743844126,-750.0,0.00032572,2]
[322074416,1712743844135,-334.0,0.00032572,2]
[322074417,1712743844144,-474.0,0.00032572,2]
[322074418,1712743844153,-1215.79,0.00032603,2]
[322074419,1712743844162,-21576.0,0.00032603,2]
[322074420,1712743844171,-151.71124129,0.00032642,7]
[322074421,1712743844180,-150.20449643,0.00032647,7]
[322074422,1712743844190,-150.0,0.00032652,2]
[322074423,1712743844201,-150.0,0.00032652,2]
[322074424,1712743844213,-200.0,0.00032652,2]
[322074425,1712743844223,-154.29187264,0.00032652,2]
[322074426,1712743844238,-154.29187264,0.00032652,2]
[322074427,1712743844248,-154.29187264,0.00032652,2]
[322074428,1712743844258,-154.29187264,0.00032652,2]
[322074429,1712743844267,-791.279062,0.00032652,2]
[322074430,1712743844277,-586.19867627,0.00032735,7]
[322074431,1712743844286,-161.18289218,0.00032745,7]
[322074432,1712743844297,-156.92392735,0.00032781,7]
[322074433,1712743844306,-1002.84,0.0003281,2]
[322074434,1712743844315,-311.84,0.00032829,2]
[322074435,1712743844325,-500.0,0.00032837,2]
[322074436,1712743844333,-500.0,0.00032837,2]
[322074437,1712743844342,-500.0,0.00032837,2]
[322074438,1712743844350,-500.0,0.00032837,2]
[322074439,1712743844359,-500.0,0.00032837,2]
[322074440,1712743844368,-500.0,0.00032837,2]
[322074441,1712743844377,-156.98006919,0.00032876,2]
[322074442,1712743844387,-188.280396,0.00032877,7]
[322074443,1712743844397,-188.280396,0.00032877,7]
[322074444,1712743844405,-150.0,0.00032877,2]
[322074445,1712743844415,-271.110924,0.00032877,7]
[322074446,1712743844424,-271.110924,0.00032877,7]
[322074447,1712743844433,-3000.0,0.000329,2]
[322074448,1712743844442,-158.97,0.000329,2]
[322074449,1712743844451,-158.97,0.000329,2]
[322074450,1712743844460,-150.0,0.000329,3]
[322074451,1712743844470,-5000.0,0.000329,2]
[322074452,1712743844478,-750.0,0.00032901,2]
[322074453,1712743844487,-418.80051636,0.00032901,2]
[322074454,1712743844497,-334.0,0.00032901,2]
[322074455,1712743844507,-474.0,0.00032901,2]
[322074456,1712743844517,-775.67331202,0.00032901,2]
[322074457,1712743844526,-100000.0,0.00033,13]
[322074458,1712743844537,-300.0,0.00033,5]
[322074459,1712743844548,-206.0,0.00033,2]
[322074460,1712743844558,-153.7660665,0.00033062,7]
[322074461,1712743844567,-699.47,0.000331,2]
[322074462,1712743844576,-858.03,0.000331,2]
[322074463,1712743844586,-151.71124129,0.00033127,7]
[322074464,1712743844597,-900.0,0.00033165,2]
[322074465,1712743844606,-750.0,0.0003323,2]
[322074466,1712743844616,-334.0,0.0003323,2]
[322074467,1712743844625,-474.0,0.0003323,2]
[322074468,1712743844635,-1002.84,0.0003332,2]
[322074469,1712743844644,-150.0,0.000334,3]
[322074470,1712743844653,-309.76,0.00033485,2]
[322074471,1712743844663,-153.88972214,0.00033492,7]
[322074472,1712743844672,-152.66,0.000335,2]
[322074473,1712743844681,-152.66,0.000335,2]
[322074474,1712743844690,-152.66,0.000335,2]
[322074475,1712743844699,-152.66,0.000335,2]
[322074476,1712743844709,-152.66,0.000335,2]
[322074477,1712743844718,-152.66,0.000335,2]
[322074478,1712743844727,-152.66,0.000335,2]
[322074479,1712743844737,-152.66,0.000335,2]
[322074480,1712743844748,-152.66,0.000335,2]
[322074481,1712743844756,-152.66,0.000335,2]
[322074482,1712743844766,-152.66,0.000335,2]
[322074483,1712743844776,-152.66,0.000335,2]
[322074484,1712743844785,-152.66,0.000335,2]
[322074485,1712743844795,-152.66,0.000335,2]
[322074486,1712743844805,-152.66,0.000335,2]
[322074487,1712743844814,-154.49579321,0.0003351,7]
[322074488,1712743844824,-156.01719987,0.00033535,7]
[322074489,1712743844833,-750.0,0.00033559,2]
[322074490,1712743844842,-334.0,0.00033559,2]
[322074491,1712743844853,-474.0,0.00033559,2]
[322074492,1712743844863,-152.66,0.000336,2]
[322074493,1712743844872,-152.66,0.000336,2]
[322074494,1712743844881,-152.66,0.000336,2]
[322074495,1712743844890,-152.66,0.000336,2]
[322074496,1712743844899,-152.66,0.000336,2]
[322074497,1712743844908,-152.66,0.000336,2]
[322074498,1712743844918,-152.66,0.000336,2]
[322074499,1712743844927,-152.66,0.000336,2]
[322074500,1712743844936,-152.66,0.000336,2]
[322074501,1712743844945,-152.66,0.000336,2]
[322074502,1712743844954,-152.66,0.000336,2]
[322074503,1712743844964,-152.66,0.000336,2]
[322074504,1712743844973,-152.66,0.000336,2]
[322074505,1712743844982,-152.66,0.000336,2]
[322074506,1712743844990,-152.66,0.000336,2]
[322074507,1712743844999,-1002.84,0.0003362,2]
[322074508,1712743845009,-905.99,0.00033671,2]
[322074509,1712743845018,-152.66,0.000337,2]
[322074510,1712743845027,-152.66,0.000337,2]
[322074511,1712743845036,-152.66,0.000337,2]
[322074512,1712743845045,-152.66,0.000337,2]
[322074513,1712743845055,-152.66,0.000337,2]
[322074514,1712743845064,-152.66,0.000337,2]
[322074515,1712743845074,-152.66,0.000337,2]
[322074516,1712743845083,-152.66,0.000337,2]
[322074517,1712743845092,-152.66,0.000337,2]
[322074518,1712743845102,-152.66,0.000337,2]
[322074519,1712743845111,-152.66,0.000337,2]
[322074520,1712743845120,-152.66,0.000337,2]
[322074521,1712743845130,-152.66,0.000337,2]
[322074522,1712743845139,-152.66,0.000337,2]
[322074523,1712743845148,-152.66,0.000337,2]
[322074524,1712743845157,-150.0,0.00033742,2]
[322074525,1712743845166,-153.88972214,0.00033754,7]
[322074526,1712743845175,-309.76,0.00033785,2]
[322074527,1712743845184,-152.66,0.000338,2]
[322074528,1712743845193,-152.66,0.000338,2]
[322074529,1712743845201,-152.66,0.000338,2]
[322074530,1712743845210,-152.66,0.000338,2]
[322074531,1712743845219,-152.66,0.000338,2]
[322074532,1712743845233,-152.66,0.000338,2]
[322074533,1712743845243,-152.66,0.000338,2]
[322074534,1712743845254,-152.66,0.000338,2]
[322074535,1712743845264,-152.66,0.000338,2]
[322074536,1712743845274,-152.66,0.000338,2]
[322074537,1712743845285,-152.66,0.000338,2]
[322074538,1712743845295,-152.66,0.000338,2]
[322074539,1712743845305,-152.66,0.000338,2]
[322074540,1712743845314,-152.66,0.000338,2]
[322074541,1712743845323,-152.66,0.000338,2]
[322074542,1712743845333,-750.0,0.00033888,2]
[322074543,1712743845342,-334.0,0.00033888,2]
[322074545,1712743845351,-474.0,0.00033888,2]
[322074546,1712743845362,-158.97,0.000339,2]
[322074547,1712743845372,-158.97,0.000339,2]
[322074548,1712743845381,-158.97,0.000339,2]
[322074549,1712743845393,-158.97,0.000339,2]
[322074550,1712743845403,-158.97,0.000339,2]
[322074551,1712743845412,-152.66,0.000339,2]
[322074552,1712743845421,-152.66,0.000339,2]
[322074553,1712743845430,-152.66,0.000339,2]
[322074555,1712743845439,-152.66,0.000339,2]
[322074556,1712743845448,-152.66,0.000339,2]
[322074558,1712743845458,-152.66,0.000339,2]
[322074560,1712743845467,-152.66,0.000339,2]
[322074562,1712743845476,-152.66,0.000339,2]
[322074564,1712743845486,-152.66,0.000339,2]
[322074566,1712743845495,-152.66,0.000339,2]
[322074568,1712743845504,-152.66,0.000339,2]
[322074570,1712743845514,-152.66,0.000339,2]
[322074572,1712743845523,-152.66,0.000339,2]
[322074573,1712743845533,-152.66,0.000339,2]
[322074574,1712743845542,-152.66,0.000339,2]
[322074575,1712743845553,-152.66,0.000339,2]
[322074576,1712743845563,-152.66,0.000339,2]
[322074577,1712743845573,-150.0,0.000339,4]
[322074578,1712743845582,-150.20449643,0.00033957,7]
[322074579,1712743845591,-156.92392735,0.00033982,7]
[322074580,1712743845601,-100000.0,0.00034,14]
[322074581,1712743845610,-550.0,0.00034,60]
[322074582,1712743845620,-250000.0,0.00034,2]
[322074583,1712743845629,-156.08416384,0.00034067,7]
[322074584,1712743845639,-340.0,0.0003413,23]
[322074585,1712743845647,-1002.84,0.0003413,2]
[322074586,1712743845657,-500.0,0.000342,2]
[322074587,1712743845666,-200.0,0.000342,2]
[322074588,1712743845675,-870.79925499,0.000342,2]
[322074589,1712743845685,-979.0,0.000342,2]
[322074590,1712743845694,-547.0,0.000342,2]
[322074591,1712743845703,-151.0,0.00034251,2]
[322074592,1712743845712,-150.0,0.00034356,2]
[322074593,1712743845721,-153.6,0.00034356,2]
[322074594,1712743845731,-150.0,0.000344,4]
[322074595,1712743845740,-1002.84,0.0003443,2]
[322074596,1712743845749,-151.71124129,0.00034452,7]
[322074597,1712743845759,-1000.0,0.000346,7]
[322074598,1712743845768,-150.0,0.00034607,2]
[322074599,1712743845777,-150.0,0.00034611,2]
[322074600,1712743845788,-150.0,0.00034633,2]
[322074601,1712743845799,-150.0,0.00034639,2]
[322074602,1712743845808,-156.08416384,0.00034677,7]
[322074603,1712743845818,-1146.83154368,0.00034692,2]
[322074604,1712743845828,-150.0,0.00034709,2]
[322074605,1712743845837,-150.0,0.0003471,2]
[322074606,1712743845847,-150.0,0.00034718,2]
[322074607,1712743845856,-150.0,0.00034726,2]
[322074608,1712743845865,-150.0,0.0003473,2]
[322074609,1712743845875,-150.0,0.00034733,2]
[322074610,1712743845884,-150.0,0.00034745,2]
[322074611,1712743845894,-150.0,0.00034774,2]
[322074612,1712743845903,-150.0,0.00034778,2]
[322074613,1712743845913,-150.0,0.00034779,2]
[322074614,1712743845924,-150.0,0.00034785,2]
[322074615,1712743845934,-150.0,0.00034791,2]
[322074616,1712743845944,-150.0,0.00034797,2]
[322074617,1712743845954,-150.0,0.000348,2]
[322074618,1712743845963,-150.0,0.000348,2]
[322074619,1712743845973,-150.0,0.00034806,2]
[322074620,1712743845983,-150.0,0.00034818,2]
[322074621,1712743845993,-150.0,0.00034822,2]
[322074622,1712743846002,-150.0,0.00034822,2]
[322074623,1712743846012,-161.18289218,0.00034826,7]
[322074625,1712743846021,-302.0,0.00034827,4]
[322074627,1712743846030,-150.0,0.00034832,2]
[322074628,1712743846040,-150.0,0.00034845,2]
[322074629,1712743846052,-1046.363131,0.00034847,2]
[322074630,1712743846062,-387.340064,0.00034847,2]
[322074631,1712743846071,-195.364549,0.00034847,2]
[322074632,1712743846080,-150.0,0.00034848,2]
[322074633,1712743846089,-150.0,0.00034856,2]
[322074634,1712743846099,-150.0,0.00034873,2]
[322074635,1712743846108,-150.0,0.00034881,2]
[322074636,1712743846118,-150.0,0.00034886,2]
[322074637,1712743846128,-1243.09117558,0.0003489,10]
[322074638,1712743846137,-150.0,0.00034892,2]
[322074639,1712743846146,-150.0,0.00034892,2]
[322074640,1712743846155,-150.0,0.00034895,2]
[322074641,1712743846165,-150.0,0.00034896,2]
[322074642,1712743846174,-150.0,0.000349,4]
[322074643,1712743846183,-150.0,0.00034915,2]
[322074644,1712743846192,-150.0,0.00034915,2]
[322074645,1712743846201,-150.0,0.00034925,2]
[322074646,1712743846211,-159.32981894,0.00034925,7]
[322074647,1712743846220,-1002.84,0.0003494,2]
[322074648,1712743846231,-150.0,0.00034943,2]
[322074649,1712743846242,-161.18289218,0.00034945,7]
[322074650,1712743846251,-150.95912378,0.00034955,7]
[322074651,1712743846260,-150.0,0.00034964,2]
[322074652,1712743846269,-150.0,0.00034964,2]
[322074653,1712743846279,-150.0,0.00034989,2]
[322074654,1712743846288,-150.0,0.00034997,2]
[322074655,1712743846300,-150.0,0.00034999,2]
[322074656,1712743846310,-100000.0,0.00035,15]
[322074657,1712743846321,-300.0,0.00035,5]
[322074658,1712743846331,-300.0,0.00035,5]
[322074659,1712743846341,-150.0,0.00035009,2]
[322074660,1712743846351,-150.0,0.00035026,2]
[322074661,1712743846360,-161.18289218,0.00035028,7]
[322074662,1712743846370,-150.0,0.00035046,2]
[322074663,1712743846380,-271.89956,0.0003505,2]
[322074664,1712743846390,-150.0,0.00035056,2]
[322074665,1712743846399,-150.0,0.00035059,2]
[322074666,1712743846409,-150.0,0.00035072,2]
[322074667,1712743846418,-150.0,0.00035072,2]
[322074668,1712743846428,-150.0,0.00035072,2]
[322074669,1712743846438,-150.0,0.00035072,2]
[322074670,1712743846447,-150.0,0.00035085,2]
[322074671,1712743846457,-311.84,0.00035093,2]
[322074672,1712743846466,-150.0,0.000351,2]
[322074673,1712743846477,-200.0,0.00035116,10]
[322074674,1712743846488,-1000.0,0.00035116,10]
[322074675,1712743846498,-500.0,0.00035116,10]
[322074676,1712743846507,-150.0,0.00035118,2]
[322074677,1712743846517,-150.0,0.00035121,2]
[322074678,1712743846526,-150.0,0.00035129,2]
[322074679,1712743846536,-150.0,0.00035129,2]
[322074680,1712743846546,-162.66547929,0.0003513,7]
[322074681,1712743846558,-150.0,0.00035137,2]
[322074682,1712743846567,-150.0,0.00035137,2]
[322074683,1712743846577,-150.0,0.00035138,2]
[322074684,1712743846586,-150.0,0.00035141,2]
[322074685,1712743846596,-150.0,0.0003515,2]
[322074686,1712743846605,-150.0,0.00035152,2]
[322074687,1712743846615,-150.0,0.00035162,2]
[322074688,1712743846625,-150.0,0.00035176,2]
[322074689,1712743846634,-150.0,0.00035186,2]
[322074690,1712743846643,-150.0,0.00035189,2]
[322074691,1712743846652,-150.0,0.00035193,2]
[322074692,1712743846662,-150.0,0.00035196,2]
[322074693,1712743846671,-150.0,0.00035197,2]
[322074694,1712743846681,-150.0,0.00035199,2]
[322074695,1712743846690,-699.47,0.000352,2]
[322074696,1712743846700,-858.03,0.000352,2]
[322074697,1712743846709,-150.0,0.000352,2]
[322074698,1712743846719,-150.0,0.00035221,2]
[322074699,1712743846730,-150.0,0.0003523,2]
[322074700,1712743846739,-150.0,0.00035231,2]
[322074701,1712743846749,-1109.36667081,0.00035239,2]
[322074702,1712743846759,-1002.84,0.0003524,2]
[322074703,1712743846768,-150.0,0.00035255,2]
[322074704,1712743846778,-150.0,0.0003526,2]
[322074705,1712743846787,-150.0,0.00035263,2]
[322074706,1712743846796,-150.0,0.00035263,2]
[322074707,1712743846807,-495.07816,0.0003527,2]
[322074708,1712743846816,-150.0,0.00035278,2]
[322074709,1712743846826,-1046.363131,0.00035282,2]
[322074710,1712743846835,-387.340064,0.00035282,2]
[322074711,1712743846845,-195.364549,0.00035282,2]
[322074712,1712743846854,-363.54,0.00035288,15]
[322074713,1712743846864,-150.0,0.0003529,2]
[322074714,1712743846876,-150.0,0.00035292,2]
[322074715,1712743846886,-150.0,0.00035294,2]
[322074716,1712743846897,-150.0,0.00035305,2]
[322074717,1712743846907,-150.0,0.00035308,2]
[322074718,1712743846917,-150.0,0.00035315,2]
[322074719,1712743846928,-150.0,0.00035329,2]
[322074720,1712743846937,-150.0,0.00035331,2]
[322074721,1712743846948,-150.0,0.00035331,2]
[322074722,1712743846957,-151.71124129,0.0003534,7]
[322074723,1712743846966,-150.0,0.00035345,2]
[322074724,1712743846976,-154.98939765,0.00035347,7]
[322074725,1712743846986,-150.0,0.00035356,2]
[322074726,1712743846995,-150.0,0.00035358,2]
[322074727,1712743847004,-156.92392735,0.00035359,7]
[322074728,1712743847014,-150.0,0.00035364,2]
[322074729,1712743847024,-150.0,0.00035364,2]
[322074730,1712743847034,-150.0,0.00035366,2]
[322074731,1712743847043,-150.0,0.00035367,2]
[322074732,1712743847055,-159.32981894,0.00035377,7]
[322074733,1712743847064,-150.0,0.0003538,2]
[322074734,1712743847073,-150.0,0.00035387,2]
[322074735,1712743847083,-3241.6924839,0.00035387,2]
[322074736,1712743847092,-2612.9722025,0.00035387,2]
[322074737,1712743847102,-150.0,0.00035388,2]
[322074738,1712743847111,-150.0,0.00035393,2]
[322074739,1712743847121,-323.45032632,0.00035399,2]
[322074740,1712743847130,-1792473.2725525,0.000354,2]
[322074741,1712743847139,-150.0,0.000354,4]
[322074742,1712743847149,-2000.0,0.000354,2]
[322074743,1712743847158,-150.0,0.000354,2]
[322074744,1712743847167,-394.0,0.000354,9]
[322074745,1712743847177,-233.5883,0.000354,7]
[322074746,1712743847186,-151.0,0.000354,7]
[322074747,1712743847195,-151.0,0.000354,7]
[322074748,1712743847205,-151.0,0.000354,7]
[322074749,1712743847214,-151.0,0.000354,7]
[322074750,1712743847224,-151.0,0.000354,7]
[322074751,1712743847235,-151.0,0.000354,7]
[322074752,1712743847245,-151.0,0.000354,7]
[322074753,1712743847254,-151.0,0.000354,7]
[322074754,1712743847264,-151.0,0.000354,7]
[322074755,1712743847275,-151.0,0.000354,7]
[322074756,1712743847284,-156.499938,0.000354,7]
[322074757,1712743847294,-151.0,0.000354,7]
[322074758,1712743847306,-291.08115,0.000354,7]
[322074759,1712743847317,-151.0,0.000354,7]
[322074760,1712743847327,-151.0,0.000354,7]
[322074761,1712743847336,-151.0,0.000354,7]
[322074762,1712743847346,-151.0,0.000354,7]
[322074763,1712743847356,-151.0,0.000354,7]
[322074764,1712743847365,-164.670556,0.000354,7]
[322074765,1712743847375,-151.0,0.000354,7]
[322074766,1712743847385,-151.0,0.000354,7]
[322074767,1712743847394,-159.521394,0.000354,7]
[322074768,1712743847404,-174.934779,0.000354,7]
[322074769,1712743847414,-188.280396,0.000354,7]
[322074770,1712743847424,-188.280396,0.000354,7]
[322074771,1712743847435,-151.0,0.000354,7]
[322074772,1712743847445,-151.0,0.000354,7]
[322074773,1712743847455,-151.0,0.000354,7]
[322074774,1712743847464,-151.0,0.000354,7]
[322074775,1712743847475,-151.0,0.000354,7]
[322074776,1712743847485,-213.073193,0.000354,7]
[322074777,1712743847495,-213.073193,0.000354,7]
[322074778,1712743847505,-162.499694,0.000354,7]
[322074779,1712743847515,-151.0,0.000354,7]
[322074780,1712743847524,-151.0,0.000354,7]
[322074781,1712743847534,-151.0,0.000354,7]
[322074782,1712743847544,-160.892085,0.000354,7]
[322074783,1712743847555,-151.0,0.000354,7]
[322074784,1712743847565,-271.110924,0.000354,7]
[322074785,1712743847575,-151.0,0.000354,7]
[322074786,1712743847585,-271.110924,0.000354,7]
[322074787,1712743847595,-788.0,0.000354,9]
[322074788,1712743847606,-150.0,0.000354,9]
[322074789,1712743847615,-150.0,0.000354,4]
[322074790,1712743847625,-151.0,0.000354,7]
[322074791,1712743847635,-292.290948,0.000354,7]
[322074792,1712743847645,-151.0,0.000354,2]
[322074793,1712743847655,-151.0,0.000354,7]
[322074794,1712743847666,-151.0,0.000354,7]
[322074795,1712743847675,-322.988531,0.000354,7]
[322074796,1712743847685,-322.988531,0.000354,7]
[322074797,1712743847696,-151.0,0.000354,7]
[322074798,1712743847706,-151.0,0.000354,7]
[322074799,1712743847717,-151.0,0.000354,7]
[322074800,1712743847727,-151.0,0.000354,7]
[322074801,1712743847737,-294.843849,0.000354,7]
[322074802,1712743847747,-294.843849,0.000354,7]
[322074803,1712743847758,-168.432646,0.000354,7]
[322074804,1712743847768,-152.087768,0.000354,7]
[322074805,1712743847781,-151.0,0.000354,7]
[322074806,1712743847989,-151.0,0.000354,7]
[322074807,1712743847999,-151.0,0.000354,7]
[322074808,1712743848008,-151.0,0.000354,7]
[322074809,1712743848017,-151.0,0.000354,7]
[322074810,1712743848027,-151.0,0.000354,7]
[322074811,1712743848036,-777.838234,0.000354,7]
[322074812,1712743848046,-777.838234,0.000354,7]
[322074813,1712743848058,-151.0,0.000354,7]
[322074814,1712743848067,-151.0,0.000354,7]
[322074815,1712743848077,-151.0,0.000354,7]
[322074816,1712743848087,-151.0,0.000354,7]
[322074817,1712743848096,-151.0,0.000354,7]
[322074818,1712743848105,-151.0,0.000354,7]
[322074819,1712743848115,-151.0,0.000354,7]
[322074820,1712743848124,-151.0,0.000354,7]
[322074821,1712743848134,-255.915106,0.000354,7]
[322074822,1712743848143,-151.0,0.000354,7]
[322074823,1712743848152,-12821.0618417,0.00035402,2]
[322074824,1712743848161,-11379.4988855,0.00035402,2]
[322074825,1712743848170,-9937.9359293,0.00035402,2]
[322074826,1712743848180,-8496.3729732,0.00035402,2]
[322074827,1712743848189,-7054.810017,0.00035402,2]
[322074828,1712743848198,-5613.2470608,0.00035402,2]
[322074829,1712743848207,-87752.4604362,0.00035402,2]
[322074830,1712743848216,-78168.3301251,0.00035402,2]
[322074831,1712743848226,-68584.199814,0.00035402,2]
[322074832,1712743848239,-59000.0695029,0.00035402,2]
[322074833,1712743848248,-49415.9391918,0.00035402,2]
[322074834,1712743848258,-39831.8088807,0.00035402,2]
[322074835,1712743848267,-5756.5736095,0.00035402,2]
[322074836,1712743848276,-5127.8533281,0.00035402,2]
[322074837,1712743848285,-4499.1330467,0.00035402,2]
[322074838,1712743848294,-3870.4127653,0.00035402,2]
[322074839,1712743848304,-271.89956,0.0003541,2]
[322074840,1712743848314,-157.18906213,0.00035411,7]
[322074841,1712743848324,-604.0,0.00035412,7]
[322074842,1712743848333,-200.0,0.00035426,10]
[322074843,1712743848342,-156.92392735,0.00035429,7]
[322074844,1712743848352,-154.29187264,0.00035432,13]
[322074845,1712743848361,-161.18289218,0.00035465,7]
[322074846,1712743848370,-150.0,0.00035472,2]
[322074847,1712743848380,-309.76,0.0003557,2]
[322074848,1712743848389,-153.7660665,0.00035579,7]
[322074849,1712743848399,-192.102306,0.00035588,2]
[322074850,1712743848409,-352.08148,0.00035588,2]
[322074851,1712743848420,-3000.0,0.000356,2]
[322074852,1712743848431,-5000.0,0.000356,2]
[322074853,1712743848441,-161.18289218,0.00035668,7]
[322074854,1712743848450,-161.18289218,0.00035704,7]
[322074855,1712743848461,-1046.363131,0.00035718,2]
[322074856,1712743848471,-387.340064,0.00035718,2]
[322074857,1712743848481,-195.364549,0.00035718,2]
[322074858,1712743848491,-1002.84,0.0003575,2]
[322074859,1712743848501,-156.92392735,0.0003576,7]
[322074860,1712743848510,-1109.36667082,0.00035844,2]
[322074861,1712743848519,-150.0,0.00035848,120]
[322074862,1712743848529,-211.0,0.0003592,2]
[322074863,1712743848539,-156.08416384,0.0003592,7]
[322074864,1712743848549,-154.29187264,0.00035932,15]
[322074865,1712743848562,-1030.0,0.00035946,5]
[322074866,1712743848572,-161.18289218,0.00035953,7]
[322074867,1712743848581,-154.05205823,0.00035955,7]
[322074868,1712743848590,-150.0,0.00035999,2]
[322074869,1712743848600,-100000.0,0.00036,16]
[322074870,1712743848609,-600.0,0.00036,37]
[322074871,1712743848619,-666.61975026,0.00036,65]
[322074872,1712743848629,-2268.66117965,0.00036,2]
[322074873,1712743848638,-151.71124129,0.00036008,7]
[322074874,1712743848647,-192.102306,0.00036027,2]
[322074875,1712743848657,-352.08148,0.00036027,2]
[322074876,1712743848667,-271.89956,0.0003603,2]
[322074877,1712743848677,-1002.84,0.0003605,2]
[322074878,1712743848687,-161.18289218,0.0003607,7]
[322074879,1712743848696,-150.0,0.000361,120]
[322074880,1712743848706,-150.20449643,0.000361,7]
[322074881,1712743848716,-154.98939765,0.00036107,7]
[322074882,1712743848725,-1046.363131,0.00036153,2]
[322074883,1712743848735,-387.340064,0.00036153,2]
[322074884,1712743848744,-195.364549,0.00036153,2]
[322074885,1712743848754,-354.69,0.00036164,2]
[322074886,1712743848765,-1000.0,0.000362,7]
[322074887,1712743848774,-150.20449643,0.00036204,7]
[322074888,1712743848783,-150.0,0.00036267,120]
[322074889,1712743848793,-1405.14847445,0.000363,2]
[322074890,1712743848805,-1208.0,0.00036309,30]
[322074891,1712743848815,-150.0,0.00036337,2]
[322074892,1712743848825,-150.0,0.00036339,120]
[322074893,1712743848834,-150.0,0.000364,2]
[322074894,1712743848844,-154.29187264,0.00036432,17]
[322074895,1712743848855,-152.32027786,0.00036435,7]
[322074896,1712743848864,-192.102306,0.00036466,2]
[322074897,1712743848873,-352.08148,0.00036466,2]
[322074898,1712743848883,-267.38,0.00036482,2]
[322074899,1712743848893,-536.14,0.00036482,2]
[322074900,1712743848902,-156.92392735,0.00036542,7]
[322074901,1712743848912,-1002.84,0.0003656,2]
[322074902,1712743848921,-1046.363131,0.00036589,2]
[322074903,1712743848930,-387.340064,0.00036589,2]
[322074904,1712743848940,-195.364549,0.00036589,2]
[322074905,1712743848949,-151.71124129,0.00036622,7]
[322074906,1712743848958,-151.0,0.00036636,2]
[322074907,1712743848967,-156.01719987,0.00036654,7]
[322074908,1712743848976,-271.89956,0.0003666,2]
[322074909,1712743848986,-150.0,0.00036721,120]
[322074910,1712743848995,-151.71124129,0.0003673,7]
[322074911,1712743849005,-151.71124129,0.00036854,7]
[322074912,1712743849014,-1002.84,0.0003686,2]
[322074913,1712743849023,-699.47,0.000369,2]
[322074914,1712743849033,-858.03,0.000369,2]
[322074915,1712743849042,-192.102306,0.00036906,2]
[322074916,1712743849054,-352.08148,0.00036906,2]
[322074917,1712743849063,-154.29187264,0.00036932,19]